bitfinex/quotes_BTCUSD_20250727
["timestamp","ask_amount","ask_price","bid_price","bid_amount"]
[1753607719546,0.29732711,118080.0,118070.0,0.47177334]
[1753607720927,0.29732711,118080.0,118070.0,0.1545821]
[1753607723420,0.29732711,118080.0,118070.0,0.47177334]
[1753607724481,0.29732711,118080.0,118070.0,0.1545821]
[1753607728765,0.69732711,118080.0,118070.0,0.1545821]
[1753607730357,0.29732711,118080.0,118070.0,0.1545821]
[1753607737722,0.61451835,118080.0,118070.0,0.1544621]
[1753607738127,0.66318612,118080.0,118070.0,0.0267021]
[1753607738319,0.66318612,118080.0,118070.0,0.1544621]
[1753607739505,0.66418612,118080.0,118070.0,0.1544621]
[1753607740027,0.66518612,118080.0,118070.0,0.1544621]
[1753607756634,0.5975357,118080.0,118070.0,0.1544621]
[1753607757282,0.28034446,118080.0,118070.0,0.12862]
[1753607757709,0.28034446,118080.0,118070.0,0.44581124]
[1753607758841,0.23167669,118080.0,118070.0,0.44581124]
[1753607763608,0.23167669,118080.0,118070.0,0.47148741]
[1753607766382,0.21597669,118080.0,118070.0,0.47148741]
[1753607768343,0.21597669,118080.0,118070.0,0.64087844]
[1753607768556,0.21597669,118080.0,118070.0,0.47148741]
[1753607771956,0.21597669,118080.0,118070.0,0.15429617]
[1753607772211,0.21597669,118080.0,118070.0,0.47148741]
[1753607772398,0.25992433,118080.0,118070.0,0.47148741]
[1753607772614,0.25992433,118080.0,118070.0,0.15429617]
[1753607776434,0.27602433,118080.0,118070.0,0.15429617]
[1753607776643,0.27602433,118080.0,118070.0,0.47148741]
[1753607778813,0.27602433,118080.0,118070.0,0.15429617]
[1753607779692,0.27602433,118080.0,118070.0,0.12977464]
[1753607780326,0.34367475,118080.0,118070.0,0.12977464]
[1753607781185,0.29972711,118080.0,118070.0,0.12977464]
[1753607784434,0.61691835,118080.0,118070.0,0.12977464]
[1753607791697,0.23207669,118080.0,118070.0,0.12977464]
[1753607791940,0.54926793,118080.0,118070.0,0.12977464]
[1753607795395,0.23207669,118080.0,118070.0,0.12977464]
[1753607795585,0.62941183,118080.0,118070.0,0.12977464]
[1753607801252,0.31222059,118080.0,118070.0,0.12977464]
[1753607801464,0.62941183,118080.0,118070.0,0.12977464]
[1753607802298,0.31222059,118080.0,118070.0,0.12977464]
[1753607805241,0.23207669,118080.0,118070.0,0.12977464]
[1753607806364,0.61691835,118080.0,118070.0,0.12977464]
[1753607808555,0.29972711,118080.0,118070.0,0.12977464]
[1753607813907,0.61691835,118080.0,118070.0,0.12977464]
[1753607814116,0.61679835,118080.0,118070.0,0.12977464]
[1753607815047,0.63365616,118080.0,118070.0,0.12977464]
[1753607817990,0.63365616,118080.0,118070.0,0.12826278]
[1753607822342,0.63365616,118080.0,118070.0,0.10258661]
[1753607822572,0.17786043,118070.0,118060.0,0.34]
[1753607822784,0.22244043,118070.0,118060.0,0.86946854]
[1753607822999,0.20634043,118070.0,118060.0,0.86946854]
[1753607823210,0.20634043,118070.0,118060.0,0.87146854]
[1753607823634,0.20634043,118070.0,118060.0,1.04087392]
[1753607823856,0.20638899,118070.0,118060.0,1.04934418]
[1753607824272,0.20638899,118070.0,118060.0,0.8799388]
[1753607824504,0.20638899,118070.0,118060.0,1.0578143]
[1753607825120,0.21485832,118070.0,118060.0,1.0578143]
[1753607825331,0.21281832,118070.0,118060.0,1.0578143]
[1753607825780,0.21281832,118070.0,118060.0,0.74062306]
[1753607825972,0.21273363,118070.0,118060.0,1.0578143]
[1753607826590,0.21273363,118070.0,118060.0,0.74062306]
[1753607826896,0.21273363,118070.0,118060.0,1.0578143]
[1753607827112,0.21273363,118070.0,118060.0,1.08287404]
[1753607830344,0.21273363,118070.0,118060.0,1.09134409]
[1753607832216,0.21273363,118070.0,118060.0,0.77415285]
[1753607832495,0.21273363,118070.0,118060.0,1.09134409]
[1753607838733,0.21273363,118070.0,118060.0,0.77415285]
[1753607838940,0.21273363,118070.0,118060.0,1.09134409]
[1753607839571,0.21273363,118070.0,118060.0,1.08287404]
[1753607839987,0.22803363,118070.0,118060.0,1.08287404]
[1753607840623,0.22803363,118070.0,118060.0,1.09134409]
[1753607842118,0.3164315,118070.0,118060.0,1.07240392]
[1753607842349,0.3164315,118070.0,118060.0,1.08087411]
[1753607843024,0.2366043,118070.0,118060.0,1.08087411]
[1753607843240,0.2366043,118070.0,118060.0,0.76368287]
[1753607843477,0.2366043,118070.0,118060.0,1.08087411]
[1753607845680,0.22821959,118070.0,118060.0,0.57733704]
[1753607845934,0.22821959,118070.0,118060.0,0.81005098]
[1753607846117,0.30645538,118070.0,118060.0,0.81005098]
[1753607846333,0.62364662,118070.0,118060.0,0.02505974]
[1753607846564,0.62364662,118070.0,118030.0,0.7933877]
[1753607846565,0.01694232,118040.0,118030.0,0.7933877]
[1753607846782,0.02541373,118040.0,118030.0,0.97788859]
[1753607847491,0.01694232,118040.0,118030.0,1.32635404]
[1753607847714,0.01694232,118040.0,118030.0,1.12295404]
[1753607847913,0.01694232,118040.0,118030.0,1.12495404]
[1753607848759,0.01694225,118040.0,118030.0,1.12495404]
[1753607848967,0.01694225,118040.0,118030.0,1.12695404]
[1753607850180,0.00847105,118040.0,118030.0,1.12695404]
[1753607850377,0.01694225,118040.0,118030.0,1.12695404]
[1753607850798,0.01694225,118040.0,118030.0,1.15211662]
[1753607851211,0.00847105,118040.0,118030.0,1.15211662]
[1753607851477,0.22215091,118050.0,118030.0,1.15211662]
[1753607851478,0.23909244,118050.0,118040.0,0.53484833]
[1753607851682,0.24120244,118050.0,118040.0,1.06431687]
[1753607852279,0.24967342,118050.0,118040.0,1.06431687]
[1753607852552,0.26587342,118050.0,118040.0,1.05584567]
[1753607852758,0.26587342,118050.0,118040.0,1.05684567]
[1753607853457,0.26587342,118050.0,118040.0,1.05784567]
[1753607853663,0.26587342,118050.0,118040.0,1.06631701]
[1753607853978,0.2574028,118050.0,118040.0,1.06631701]
[1753607854605,0.2574028,118050.0,118040.0,1.07478828]
[1753607856427,0.2574028,118050.0,118040.0,1.08521948]
[1753607856655,0.07950175,118050.0,118040.0,1.08521948]
[1753607856888,0.06330175,118050.0,118040.0,1.08521948]
[1753607857338,0.23272148,118050.0,118040.0,1.08521948]
[1753607857566,0.24119246,118050.0,118040.0,1.08521948]
[1753607859950,0.07177273,118050.0,118040.0,1.08521948]
[1753607860407,0.24119246,118050.0,118040.0,1.08521948]
[1753607861739,0.07177273,118050.0,118040.0,1.08521948]
[1753607861958,0.06330175,118050.0,118040.0,1.08521948]
[1753607862821,0.23272148,118050.0,118040.0,1.08521948]
[1753607865289,0.06330146,118050.0,118040.0,1.08521948]
[1753607866380,0.07177237,118050.0,118040.0,1.08521948]
[1753607867054,0.07177237,118050.0,118040.0,0.76802824]
[1753607867257,0.2411921,118050.0,118040.0,1.08521948]
[1753607868143,0.07177237,118050.0,118040.0,1.08521948]
[1753607873925,0.2411921,118050.0,118040.0,1.07674828]
[1753607874126,0.24966308,118050.0,118040.0,1.07674828]
[1753607877878,0.24966308,118050.0,118040.0,1.08521948]
[1753607878597,0.08024335,118050.0,118040.0,1.08521948]
[1753607878811,0.24966308,118050.0,118040.0,1.08521948]
[1753607879020,0.06330146,118050.0,118040.0,1.08521948]
[1753607879242,0.06119146,118050.0,118040.0,1.08521948]
[1753607881573,0.0696618,118050.0,118040.0,1.08521948]
[1753607882594,0.07813264,118050.0,118040.0,1.08521948]
[1753607883255,0.0696618,118050.0,118040.0,1.08521948]
[1753607885103,0.07813264,118050.0,118040.0,1.08521948]
[1753607888840,0.25818328,118050.0,118040.0,1.08521948]
[1753607889044,0.08876355,118050.0,118040.0,1.08521948]
[1753607891387,0.08029264,118050.0,118040.0,1.08521948]
[1753607895722,0.08876355,118050.0,118040.0,1.08521948]
[1753607895930,0.08876355,118050.0,118040.0,0.76802824]
[1753607896136,0.08876355,118050.0,118040.0,1.08521948]
[1753607897621,0.25818385,118050.0,118040.0,1.08521948]
[1753607897826,0.27408385,118050.0,118040.0,1.08521948]
[1753607898683,0.10466412,118050.0,118040.0,1.08521948]
[1753607898861,0.10466412,118050.0,118040.0,1.07674828]
[1753607899192,0.27408385,118050.0,118040.0,1.06827701]
[1753607899860,0.26561323,118050.0,118040.0,1.05980567]
[1753607901253,0.25714246,118050.0,118040.0,1.05980567]
[1753607903801,0.24867162,118050.0,118040.0,1.05133426]
[1753607904421,0.24020071,118050.0,118040.0,1.05133426]
[1753607904853,0.23172973,118050.0,118040.0,0.73410302]
[1753607905077,0.23172973,118050.0,118040.0,1.04933426]
[1753607905736,0.23172973,118050.0,118040.0,1.04733426]
[1753607907565,0.23172973,118050.0,118040.0,1.05580574]
[1753607907708,0.23172973,118050.0,118040.0,1.05794574]
[1753607908347,0.23172973,118050.0,118040.0,0.73228302]
[1753607908579,0.23172973,118050.0,118040.0,1.04947426]
[1753607910396,0.23172973,118050.0,118040.0,0.73228302]
[1753607910625,0.23172973,118050.0,118040.0,1.04947426]
[1753607911567,0.23172973,118050.0,118040.0,0.73228302]
[1753607911767,0.23172973,118050.0,118040.0,1.04947426]
[1753607913900,0.24020064,118050.0,118040.0,1.05794567]
[1753607914542,0.24020064,118050.0,118040.0,1.05794574]
[1753607914879,0.24020064,118050.0,118040.0,1.06641708]
[1753607915243,0.24867133,118050.0,118040.0,1.06641708]
[1753607915460,0.23277133,118050.0,118040.0,1.07488835]
[1753607915675,0.23061133,118050.0,118040.0,1.07488835]
[1753607916355,0.23908231,118050.0,118040.0,1.07488835]
[1753607918532,0.23908231,118050.0,118040.0,1.08335955]
[1753607922435,0.06966258,118050.0,118040.0,1.08335955]
[1753607923281,0.23908231,118050.0,118040.0,1.08335955]
[1753607923930,0.23908231,118050.0,118040.0,1.06641708]
[1753607924134,0.23908231,118050.0,118040.0,1.05794574]
[1753607924349,0.23908231,118050.0,118040.0,0.74922591]
[1753607924555,0.23908231,118050.0,118040.0,1.07488849]
[1753607930536,0.23263162,118050.0,118040.0,0.74922591]
[1753607930746,0.23263162,118050.0,118040.0,1.06641715]
[1753607932016,0.23263162,118050.0,118040.0,1.05794574]
[1753607933381,0.24056071,118050.0,118040.0,1.05794574]
[1753607934028,0.24056071,118050.0,118040.0,1.04947426]
[1753607934887,0.24056071,118050.0,118040.0,1.05794574]
[1753607936140,0.24056071,118050.0,118040.0,1.06641715]
[1753607936513,0.24056071,118050.0,118040.0,1.07488849]
[1753607937518,0.22416071,118050.0,118040.0,1.07488849]
[1753607939287,0.22416071,118050.0,118040.0,1.06641715]
[1753607940649,0.22416071,118050.0,118040.0,0.74922591]
[1753607940868,0.22416071,118050.0,118040.0,1.06641715]
[1753607941233,0.22416071,118050.0,118040.0,1.07488849]
[1753607945752,0.22416071,118050.0,118040.0,0.75769725]
[1753607945959,0.22416071,118050.0,118040.0,1.07488849]
[1753607946709,0.22416071,118050.0,118040.0,1.06641715]
[1753607948913,0.23263148,118050.0,118040.0,1.07488849]
[1753607949335,0.23263148,118050.0,118040.0,1.08335976]
[1753607949923,0.06321175,118050.0,118040.0,1.08335976]
[1753607950123,0.23263105,118050.0,118040.0,1.06641715]
[1753607950336,0.24110189,118050.0,118040.0,1.07488849]
[1753607951539,0.25804378,118050.0,118040.0,1.08335976]
[1753607951984,0.27404378,118050.0,118040.0,1.08335976]
[1753607955443,0.10462405,118050.0,118040.0,1.08335976]
[1753607957419,0.09615307,118050.0,118040.0,1.08335976]
[1753607957650,0.09615307,118050.0,118040.0,1.08335933]
[1753607958950,0.10462405,118050.0,118040.0,1.07488813]
[1753607959767,0.27404378,118050.0,118040.0,1.07488813]
[1753607959962,0.25710246,118050.0,118040.0,1.06641686]
[1753607967752,0.25710246,118050.0,118040.0,1.05794552]
[1753607967959,0.25710246,118050.0,118040.0,1.06641686]
[1753607969394,0.07921175,118050.0,118040.0,1.08335933]
[1753607973109,0.25710246,118050.0,118040.0,1.07488813]
[1753607974400,0.08768273,118050.0,118040.0,1.07488813]
[1753607974621,0.07921175,118050.0,118040.0,1.08335933]
[1753607981113,0.08768273,118050.0,118040.0,1.08335933]
[1753607981324,0.25710246,118050.0,118040.0,1.07488813]
[1753607981968,0.07921175,118050.0,118040.0,1.08335933]
[1753607988229,0.25710246,118050.0,118040.0,1.06641686]
[1753607988444,0.25710246,118050.0,118040.0,1.07488813]
[1753607989367,0.08768273,118050.0,118040.0,1.07488813]
[1753607989574,0.25710246,118050.0,118040.0,1.07488813]
[1753607992447,0.07921175,118050.0,118040.0,1.08335933]
[1753607992870,0.25710246,118050.0,118040.0,1.07488813]
[1753608003507,0.08768273,118050.0,118040.0,1.08335933]
[1753608006498,0.25710246,118050.0,118040.0,1.08335933]
[1753608007160,0.25710246,118050.0,118040.0,1.07488813]
[1753608007853,0.25710246,118050.0,118040.0,1.06641686]
[1753608008706,0.25710246,118050.0,118040.0,0.74922562]
[1753608008887,0.25710246,118050.0,118040.0,1.05794552]
[1753608010625,0.25710246,118050.0,118040.0,1.05794581]
[1753608011136,0.24863162,118050.0,118040.0,1.05794581]
[1753608012705,0.24863162,118050.0,118040.0,1.05580581]
[1753608013442,0.24016071,118050.0,118040.0,0.73861472]
[1753608013654,0.24016071,118050.0,118040.0,1.06427752]
[1753608015678,0.24016071,118050.0,118040.0,1.072749]
[1753608018777,0.24016071,118050.0,118040.0,1.08122041]
[1753608018978,0.24863148,118050.0,118040.0,1.08122005]
[1753608019671,0.24863148,118050.0,118040.0,1.08121969]
[1753608020255,0.24863148,118050.0,118040.0,1.07274842]
[1753608020469,0.24863148,118050.0,118040.0,1.07472842]
[1753608022542,0.24863148,118050.0,118040.0,1.05778567]
[1753608022752,0.24863148,118050.0,118040.0,1.05580567]
[1753608022984,0.24016071,118050.0,118040.0,0.5522373]
[1753608023214,0.21797713,118040.0,118030.0,0.02541672]
[1753608023460,0.21797713,118040.0,118030.0,0.57765402]
[1753608023461,0.60497879,118040.0,118030.0,0.57765402]
[1753608023732,0.63099879,118040.0,118030.0,0.46776]
[1753608023948,0.17792071,118030.0,118020.0,0.00831165]
[1753608024179,0.23770071,118030.0,118020.0,0.0844773]
[1753608024404,0.31312189,118030.0,118020.0,0.4678]
[1753608025089,0.21800871,118020.0,118010.0,0.70701361]
[1753608025305,0.05055591,118020.0,118010.0,1.26791006]
[1753608025519,0.07707591,118020.0,118010.0,1.28519653]
[1753608025970,0.07707591,118020.0,118010.0,1.2936701]
[1753608026185,0.07707591,118020.0,118010.0,1.29367024]
[1753608026399,0.08554897,118020.0,118010.0,1.29367024]
[1753608026593,0.08554897,118020.0,118010.0,1.29567024]
[1753608027009,0.07707591,118020.0,118010.0,1.29567024]
[1753608027242,0.07707591,118020.0,118010.0,1.30614381]
[1753608027882,0.07707591,118020.0,118010.0,1.31478843]
[1753608028090,0.07707591,118020.0,118010.0,1.30631486]
[1753608028315,0.07707591,118020.0,118010.0,1.31478843]
[1753608028741,0.07707562,118020.0,118010.0,1.31478843]
[1753608028955,0.07707562,118020.0,118010.0,1.32326192]
[1753608029369,0.07707562,118020.0,118010.0,1.31478843]
[1753608029821,0.07707562,118020.0,118010.0,1.32326192]
[1753608030028,0.08554804,118020.0,118010.0,1.32539149]
[1753608030244,0.07707519,118020.0,118010.0,1.32539113]
[1753608031387,0.08554797,118020.0,118010.0,1.11347778]
[1753608032062,0.07707519,118020.0,118010.0,1.11347778]
[1753608032274,0.07707519,118020.0,118010.0,1.12195113]
[1753608034059,0.06860249,118020.0,118010.0,1.12195113]
[1753608034282,0.06067512,118020.0,118010.0,1.12195113]
[1753608035553,0.06914782,118020.0,118010.0,1.12195113]
[1753608035767,0.06067512,118020.0,118010.0,1.12195113]
[1753608036197,0.05220249,118020.0,118010.0,1.12195113]
[1753608036629,0.05546,118030.0,118020.0,0.19488134]
[1753608036870,0.10366177,118030.0,118020.0,0.63352995]
[1753608037093,0.15079362,118030.0,118020.0,0.67442543]
[1753608037318,0.15079362,118030.0,118020.0,0.65047543]
[1753608037502,0.14548156,118030.0,118020.0,0.65047543]
[1753608038079,0.14548156,118030.0,118020.0,0.65147543]
[1753608038282,0.14548156,118030.0,118020.0,0.65994806]
[1753608038980,0.14548156,118030.0,118020.0,0.64300273]
[1753608039192,0.13700957,118030.0,118020.0,0.9696666]
[1753608039600,0.1370095,118030.0,118020.0,0.9696666]
[1753608039852,0.06659184,118030.0,118020.0,0.9696666]
[1753608040057,0.07506375,118030.0,118020.0,0.9696666]
[1753608040275,0.48353588,118030.0,118020.0,0.65247543]
[1753608040495,0.48353581,118030.0,118020.0,0.65247543]
[1753608040722,0.48554581,118030.0,118020.0,0.64400273]
[1753608041972,0.50574881,118030.0,118020.0,0.64400273]
[1753608042178,0.50574881,118030.0,118020.0,0.65247543]
[1753608042416,0.50574881,118030.0,118020.0,0.63552995]
[1753608042579,0.51422101,118030.0,118020.0,0.63552995]
[1753608043979,0.51422101,118030.0,118020.0,0.64400273]
[1753608044595,0.51422094,118030.0,118020.0,0.64400273]
[1753608045662,0.52269314,118030.0,118020.0,0.63552995]
[1753608046299,0.52269314,118030.0,118020.0,0.64400273]
[1753608046940,0.51422094,118030.0,118020.0,0.64400273]
[1753608047803,0.49401794,118030.0,118020.0,0.63552995]
[1753608048290,0.50249021,118030.0,118020.0,0.63552995]
[1753608048931,0.50249014,118030.0,118020.0,0.63552995]
[1753608049347,0.50249014,118030.0,118020.0,0.63553002]
[1753608049769,0.50249065,118030.0,118020.0,0.63553002]
[1753608050048,0.57899332,118030.0,118020.0,0.63340002]
[1753608050851,0.57899332,118030.0,118020.0,0.63339995]
[1753608051670,0.57899332,118030.0,118020.0,0.62492703]
[1753608052011,0.57899332,118030.0,118020.0,0.63339995]
[1753608052219,0.57899332,118030.0,118020.0,0.62492703]
[1753608054467,0.57899332,118030.0,118020.0,0.63339995]
[1753608055571,0.57899332,118030.0,118020.0,0.62492703]
[1753608055920,0.74844176,118030.0,118020.0,0.61645404]
[1753608056129,0.73996985,118030.0,118020.0,0.6249271]
[1753608056364,0.57052141,118030.0,118020.0,0.63340009]
[1753608056572,0.57052141,118030.0,118020.0,0.31620885]
[1753608056788,0.73996985,118030.0,118020.0,0.30773586]
[1753608057339,0.73996985,118030.0,118020.0,0.6249271]
[1753608057984,0.33996985,118030.0,118020.0,0.63340009]
[1753608059356,0.17052141,118030.0,118020.0,0.63340009]
[1753608060283,0.17052141,118030.0,118020.0,0.6249271]
[1753608060500,0.17899383,118030.0,118020.0,0.63340009]
[1753608061142,0.17899383,118030.0,118020.0,0.6249271]
[1753608061343,0.34844227,118030.0,118020.0,0.6249271]
[1753608061545,0.33997021,118030.0,118020.0,0.62492718]
[1753608061756,0.33997021,118030.0,118020.0,0.63340024]
[1753608061961,0.33997021,118030.0,118020.0,0.64187323]
[1753608062942,0.33997021,118030.0,118020.0,0.63340024]
[1753608063336,0.33997021,118030.0,118020.0,0.61645404]
[1753608063557,0.33997021,118030.0,118020.0,0.62492703]
[1753608063759,0.33997021,118030.0,118020.0,0.6249271]
[1753608064315,0.33997021,118030.0,118020.0,0.63340009]
[1753608064494,0.16204935,118030.0,118020.0,0.63340009]
[1753608064702,0.16204935,118030.0,118020.0,0.64187301]
[1753608064850,0.16204935,118030.0,118020.0,0.63340009]
[1753608065265,0.16204935,118030.0,118020.0,0.6249271]
[1753608066185,0.16204935,118030.0,118020.0,0.63340009]
[1753608066404,0.17052177,118030.0,118020.0,0.63340009]
[1753608067298,0.33997021,118030.0,118020.0,0.6249271]
[1753608068181,0.33997021,118030.0,118020.0,0.63340024]
[1753608068409,0.33997021,118030.0,118020.0,0.64187323]
[1753608068825,0.33997021,118030.0,118020.0,0.63340024]
[1753608069231,0.33997021,118030.0,118020.0,0.64187323]
[1753608070298,0.33997021,118030.0,118020.0,0.63340024]
[1753608070765,0.33997021,118030.0,118020.0,0.316209]
[1753608070959,0.33997021,118030.0,118020.0,0.64187323]
[1753608072185,0.33997021,118030.0,118020.0,0.63340024]
[1753608075280,0.33997021,118030.0,118020.0,0.62492718]
[1753608076102,0.33149808,118030.0,118020.0,0.61645404]
[1753608076311,0.33149808,118030.0,118020.0,0.62492718]
[1753608076814,0.33149808,118030.0,118020.0,0.30773594]
[1753608077086,0.33149808,118030.0,118020.0,0.63340024]
[1753608078302,0.33149808,118030.0,118020.0,0.62492718]
[1753608080177,0.33149808,118030.0,118020.0,0.63340024]
[1753608081154,0.33149808,118030.0,118020.0,0.62492718]
[1753608081377,0.33149808,118030.0,118020.0,0.63340024]
[1753608081969,0.33149808,118030.0,118020.0,0.62492718]
[1753608082386,0.33149808,118030.0,118020.0,0.63340024]
[1753608085572,0.32302588,118030.0,118020.0,0.61645404]
[1753608086418,0.32302588,118030.0,118020.0,0.62492718]
[1753608086621,0.32302588,118030.0,118020.0,0.61645404]
[1753608087069,0.32302588,118030.0,118020.0,0.2992628]
[1753608087288,0.32302588,118030.0,118020.0,0.61645404]
[1753608089622,0.32302588,118030.0,118020.0,0.62492718]
[1753608089843,0.32302588,118030.0,118020.0,0.61645404]
[1753608091607,0.32302588,118030.0,118020.0,0.62492718]
[1753608091812,0.32302588,118030.0,118020.0,0.61645404]
[1753608092122,0.32302588,118030.0,118020.0,0.62492718]
[1753608092728,0.32302588,118030.0,118020.0,0.61645404]
[1753608093331,0.32302588,118030.0,118020.0,0.63340024]
[1753608093566,0.32302588,118030.0,118020.0,0.62492718]
[1753608094361,0.32302588,118030.0,118020.0,0.61645404]
[1753608095651,0.72302588,118030.0,118020.0,0.61645404]
[1753608099334,0.72302588,118030.0,118020.0,0.6249271]
[1753608099563,0.55357715,118030.0,118020.0,0.63340002]
[1753608099783,0.55357715,118030.0,118020.0,0.63340009]
[1753608100001,0.72302559,118030.0,118020.0,0.6249271]
[1753608100432,0.72302559,118030.0,118020.0,0.63340009]
[1753608101056,0.72302559,118030.0,118020.0,0.6249271]
[1753608101516,0.72302559,118030.0,118020.0,0.62492718]
[1753608101973,0.72302559,118030.0,118020.0,0.61645404]
[1753608102186,0.72302559,118030.0,118020.0,0.63340024]
[1753608104797,0.71455346,118030.0,118020.0,0.62492718]
[1753608106924,0.70608111,118030.0,118020.0,0.44699124]
[1753608107535,0.70608111,118030.0,118020.0,0.61645404]
[1753608109112,0.70608111,118030.0,118020.0,0.1298]
[1753608109321,0.70608111,118030.0,118020.0,0.44699124]
[1753608110671,0.30608111,118030.0,118020.0,0.44699124]
[1753608114452,0.30608111,118030.0,118020.0,0.1298]
[1753608114658,0.30608111,118030.0,118020.0,0.44699124]
[1753608116458,0.30608111,118030.0,118020.0,0.1298]
[1753608118564,0.30608111,118030.0,118020.0,0.44699124]
[1753608120081,0.70608111,118030.0,118020.0,0.44699124]
[1753608120973,1.02327235,118030.0,118020.0,0.1298]
[1753608121171,0.73153311,118030.0,118020.0,0.1298]
[1753608121813,1.04872435,118030.0,118020.0,0.001]
[1753608122026,1.04972435,118030.0,118020.0,0.1288]
[1753608122454,1.04972435,118030.0,118020.0,0.1278]
[1753608123094,1.05072435,118030.0,118020.0,0.1278]
[1753608123305,0.73353311,118030.0,118020.0,0.1278]
[1753608125686,1.05072435,118030.0,118020.0,0.1278]
[1753608126328,0.73353311,118030.0,118020.0,0.1278]
[1753608129137,1.05072435,118030.0,118020.0,0.1278]
[1753608131346,0.65072435,118030.0,118020.0,0.1278]
[1753608141760,0.33353311,118030.0,118020.0,0.1278]
[1753608141962,0.65072435,118030.0,118020.0,0.1278]
[1753608155308,0.33353311,118030.0,118020.0,0.1278]
[1753608166089,0.65072435,118030.0,118020.0,0.1278]
[1753608167527,0.33353311,118030.0,118020.0,0.1278]
[1753608167757,0.65072435,118030.0,118020.0,0.1278]
[1753608168197,0.33353311,118030.0,118020.0,0.1278]
[1753608174797,0.30808111,118030.0,118020.0,0.1278]
[1753608179831,0.30808111,118030.0,118020.0,0.65001995]
[1753608179832,0.26489544,118030.0,118020.0,0.65001995]
[1753608180056,0.26489544,118030.0,118020.0,0.6660771]
[1753608180291,0.18839277,118030.0,118020.0,0.69197009]
[1753608180532,0.18839277,118030.0,118020.0,0.70044301]
[1753608180975,0.58839277,118030.0,118020.0,0.70044301]
[1753608181187,0.58839277,118030.0,118020.0,0.69892301]
[1753608181375,0.66842951,118030.0,118020.0,0.57112301]
[1753608181598,0.65999745,118030.0,118020.0,0.36486586]
[1753608181886,0.65999745,118030.0,118020.0,0.69053009]
[1753608182858,0.65999745,118030.0,118020.0,0.69900301]
[1753608183501,0.65999745,118030.0,118020.0,0.69053009]
[1753608183710,0.65999745,118030.0,118020.0,0.69900301]
[1753608183892,0.65999745,118030.0,118020.0,0.69053009]
[1753608185096,0.65999745,118030.0,118020.0,0.6820571]
[1753608185593,0.65999745,118030.0,118020.0,0.69053009]
[1753608185826,0.65999745,118030.0,118020.0,0.6820571]
[1753608186442,0.66846951,118030.0,118020.0,0.99924834]
[1753608186621,0.67694135,118030.0,118020.0,1.00772133]
[1753608186864,0.67694135,118030.0,118020.0,0.67463009]
[1753608188252,0.66846951,118030.0,118020.0,0.67463009]
[1753608190167,0.66846951,118030.0,118020.0,0.35743885]
[1753608190377,0.66846951,118030.0,118020.0,0.67463009]
[1753608190593,0.69266951,118030.0,118020.0,0.67463009]
[1753608191131,0.69266951,118030.0,118020.0,0.6661571]
[1753608191332,0.68419745,118030.0,118020.0,0.6416271]
[1753608191533,0.68743745,118030.0,118020.0,0.6416271]
[1753608191730,0.68743745,118030.0,118020.0,1.10017112]
[1753608191731,0.41898383,118030.0,118020.0,1.10017112]
[1753608191941,0.42745603,118030.0,118020.0,1.10169119]
[1753608192157,0.43592838,118030.0,118020.0,1.10169127]
[1753608192412,0.42745603,118030.0,118020.0,1.10017127]
[1753608192611,0.42745603,118030.0,118020.0,1.10864397]
[1753608192822,0.41898383,118030.0,118020.0,1.10864397]
[1753608193058,0.42745603,118030.0,118020.0,1.1171166]
[1753608193245,0.42745596,118030.0,118020.0,1.1171166]
[1753608194095,0.41051184,118030.0,118020.0,1.1171166]
[1753608194309,0.41898383,118030.0,118020.0,1.1171166]
[1753608194726,0.42745596,118030.0,118020.0,1.1171166]
[1753608195666,0.41898383,118030.0,118020.0,1.1171166]
[1753608196092,0.01051184,118030.0,118020.0,1.1171166]
[1753608196303,0.01898383,118030.0,118020.0,1.1186366]
[1753608197623,0.01051184,118030.0,118020.0,1.1171166]
[1753608197938,0.01898383,118030.0,118020.0,1.1171166]
[1753608198164,0.01051184,118030.0,118020.0,1.1171166]
[1753608198797,0.01898375,118030.0,118020.0,1.1171166]
[1753608200209,0.01051184,118030.0,118020.0,1.1171166]
[1753608201524,0.01898375,118030.0,118020.0,1.1171166]
[1753608202528,0.01051184,118030.0,118020.0,1.1171166]
[1753608204213,0.01898383,118030.0,118020.0,1.1171166]
[1753608204433,0.01051184,118030.0,118020.0,1.1171166]
[1753608205240,0.01898383,118030.0,118020.0,1.1171166]
[1753608205441,0.01898383,118030.0,118020.0,0.79992536]
[1753608206197,0.01051184,118030.0,118020.0,0.79992536]
[1753608209306,0.02745588,118030.0,118020.0,0.79992536]
[1753608209504,0.02745581,118030.0,118020.0,0.79992536]
[1753608210533,0.02745581,118030.0,118020.0,0.78452536]
[1753608211351,0.01898375,118030.0,118020.0,0.78452536]
[1753608211562,0.02745581,118030.0,118020.0,0.78452536]
[1753608212144,0.03592801,118030.0,118020.0,0.78452536]
[1753608212590,0.05977801,118030.0,118020.0,0.78452536]
[1753608212792,0.05977801,118030.0,118020.0,0.74349536]
[1753608213130,0.07128028,118030.0,118020.0,0.74349536]
[1753608214137,0.07128079,118030.0,118020.0,0.74349536]
[1753608214578,0.07338079,118030.0,118020.0,0.42630412]
[1753608214807,0.07338079,118030.0,118020.0,0.74349536]
[1753608219899,0.05643617,118030.0,118020.0,0.74349536]
[1753608220754,0.06490844,118030.0,118020.0,0.74349536]
[1753608221554,0.07338079,118030.0,118020.0,0.74349536]
[1753608223112,0.06490844,118030.0,118020.0,0.74349536]
[1753608223292,0.08070844,118030.0,118020.0,0.74349536]
[1753608224346,0.25015739,118030.0,118020.0,0.39029309]
[1753608224555,0.26665739,118030.0,118020.0,0.7244301]
[1753608224751,0.25818533,118030.0,118020.0,0.71595725]
[1753608225287,0.25818533,118030.0,118020.0,0.39876601]
[1753608225664,0.25818533,118030.0,118020.0,0.71595725]
[1753608226649,0.25818533,118030.0,118020.0,0.7244301]
[1753608228451,0.24168533,118030.0,118020.0,0.7244301]
[1753608230318,0.24168533,118030.0,118020.0,0.58807725]
[1753608230521,0.23321313,118030.0,118020.0,0.71591725]
[1753608230721,0.24971313,118030.0,118020.0,0.71591725]
[1753608231574,0.24124086,118030.0,118020.0,0.71591725]
[1753608233270,0.24124086,118030.0,118020.0,0.7243901]
[1753608234296,0.24124086,118030.0,118020.0,0.73286288]
[1753608235731,0.24124086,118030.0,118020.0,0.7243901]
[1753608241410,0.24124086,118030.0,118020.0,0.73286288]
[1753608245252,0.24124086,118030.0,118020.0,0.7243901]
[1753608250068,0.24124086,118030.0,118020.0,0.73286288]
[1753608250278,0.24124086,118030.0,118020.0,0.73499288]
[1753608255011,0.24124086,118030.0,118020.0,0.7265201]
[1753608255928,0.24124086,118030.0,118020.0,0.40085601]
[1753608256144,0.24124086,118030.0,118020.0,0.7265201]
[1753608256369,0.08026462,118030.0,118020.0,0.41780156]
[1753608256588,0.08026462,118030.0,118020.0,0.73499288]
[1753608257287,0.08026462,118030.0,118020.0,0.74346558]
[1753608258422,0.08026462,118030.0,118020.0,0.73499288]
[1753608259108,0.24971306,118030.0,118020.0,0.73499288]
[1753608261369,0.24971306,118030.0,118020.0,0.74346558]
[1753608261936,0.24971306,118030.0,118020.0,0.73499288]
[1753608263295,0.08026462,118030.0,118020.0,0.74346558]
[1753608264190,0.08026419,118030.0,118020.0,0.74346558]
[1753608264391,0.06376419,118030.0,118020.0,0.74346522]